[Event "DSAM Bad Wildungen 2024"]
[Site "Bad Wildungen"]
[Date "2024.08.01"]
[Round "1.26"]
[White "Kostowski, Ireneus"]
[Black "Arp, Piotr Alexander"]
[Result "0-1"]
[Annotator "NA RC"]
[ECO "B08"]
[WhiteElo "1875"]
[BlackElo "1863"]
[PlyCount "60"]
[EventDate "2024.07.31"]
[EventCountry "GER"]
[SourceTitle "playchess.com"]
[Source "ChessBase"]
[SourceQuality "1"]
[TimeControl "40/5400+30:900+30"]

1. d4 {[%emt 0:00:04]} Nf6 {[%emt 0:00:06]} 2. Nf3 {[%emt 0:00:17]} g6 {[%emt 0:00:24]} 3. Nc3 {[%emt 0:00:27]} Bg7 {[%emt 0:01:33]} 4. e4 {[%emt 0:00:17]} d6 {[%emt 0:00:23]} 5. Be3 {[%emt 0:00:18]} O-O {[%emt 0:01:51]} 6. Qd2 {[%emt 0:00:43]} Ng4 {[%emt 0:01:54]} 7. Bg5 {[%emt 0:01:10]} h6 {[%emt 0:02:31] B08: Pirc Defence: Classical System.} 8. h3 {[%emt 0:02:50]} Nxf2 {[%emt 0:16:38]} 9. Qxf2 {[%emt 0:19:36]} hxg5 {[%emt 0:00:16]} 10. Nxg5 {[%emt 0:00:30]} Bh6 {[%emt 0:07:36]} 11. h4 {[%emt 0:08:15]} ({Don't play} 11. Qh4 Kg7 12. Nf3 Nc6 $11) 11... e5 {[%emt 0:07:09]} (11... Nc6 $11) 12. Nd5 $2 {[%emt 0:21:23]} (12. Bc4 $16 Bxg5 13. hxg5 Qxg5 14. Nd5) 12... f5 {[%emt 0:10:51]} 13. Bc4 {[%emt 0:05:55]} Kg7 {[%emt 0:05:02]} 14. Rf1 {[%emt 0:07:17]} c6 {[%emt 0:02:47]} 15. Nc3 {[%emt 0:01:56]} Bxg5 {[%emt 0:00:50]} 16. hxg5 {[%emt 0:01:40]} Qxg5 {[%emt 0:02:19]} 17. Rd1 {[%emt 0:02:34]} b5 {[%emt 0:00:37]} 18. Bd3 {[%emt 0:07:48]} f4 {[%emt 0:02:38]} 19. d5 {[%emt 0:01:56]} b4 {[%emt 0:03:24]} 20. Nb1 {[%emt 0:01:49]} cxd5 {[%emt 0:00:40]} 21. exd5 {[%emt 0:00:37]} Nd7 {[%emt 0:07:18]} 22. Nd2 {[%emt 0:00:41]} Nc5 {[%emt 0:00:38]} 23. Ne4 {[%emt 0:06:17]} Nxe4 {[%emt 0:00:22]} 24. Bxe4 {[%emt 0:00:15]} Bf5 {[%emt 0:01:42]} 25. Bxf5 {[%emt 0:03:14]} Qxf5 {[%emt 0:02:17]} 26. Rh1 {[%emt 0:02:00]} f3 {[%emt 0:05:47]} 27. Rd3 {[%emt 0:01:44]} Qe4+ {[%emt 0:02:15]} 28. Kd2 {[%emt 0:01:54]} fxg2 {[%emt 0:03:35]} 29. Qh4 {[%emt 0:00:56]} gxh1=Q {[%emt 0:01:22]} 30. Rh3 {[%emt 0:00:34]} Qxd5+ {[%emt 0:01:37]} 0-1

[Event "DSAM Bad Wildungen 2024"]
[Site "Bad Wildungen"]
[Date "2024.08.01"]
[Round "1.27"]
[White "Niemann, Silvio"]
[Black "Halas, Neele Zoe"]
[Result "1-0"]
[Annotator "RC"]
[ECO "C47"]
[WhiteElo "1904"]
[BlackElo "1785"]
[PlyCount "91"]
[EventDate "2024.07.31"]
[EventCountry "GER"]
[SourceTitle "playchess.com"]
[Source "ChessBase"]
[SourceQuality "1"]
[TimeControl "40/5400+30:900+30"]

1. e4 {[%emt 0:00:02]} e5 {[%emt 0:00:06]} 2. Nf3 {[%emt 0:00:15]} Nc6 {[%emt 0:00:05]} 3. Nc3 {[%emt 0:01:17]} Nf6 {[%emt 0:00:39]} 4. h3 {[%emt 0:01:19]} Be7 {[%emt 0:01:45]} 5. Bc4 {[%emt 0:01:12]} O-O {[%emt 0:11:01]} 6. a3 {[%emt 0:00:10]} Nxe4 {[%emt 0:07:40]} 7. Nxe4 {[%emt 0:01:12]} d5 {[%emt 0:00:06]} 8. Bxd5 {[%emt 0:00:40]} Qxd5 {[%emt 0:00:09]} 9. Nc3 {[%emt 0:00:11]} Qd8 {[%emt 0:00:40]} 10. O-O {[%emt 0:00:07]} Bf5 {[%emt 0:02:06]} 11. d3 {[%emt 0:00:23]} Re8 {[%emt 0:08:12]} 12. Be3 {[%emt 0:03:02]} Bf8 {[%emt 0:03:29]} 13. Re1 {[%emt 0:01:05]} f6 {[%emt 0:12:42]} 14. Nh4 {[%emt 0:04:15]} Be6 {[%emt 0:01:05]} 15. Qf3 {[%emt 0:10:53]} Nd4 {[%emt 0:13:24]} 16. Bxd4 {[%emt 0:02:40]} Qxd4 {[%emt 0:00:06]} 17. Nf5 {[%emt 0:01:09]} Qd7 {[%emt 0:01:23]} 18. g4 {[%emt 0:01:49]} c6 {[%emt 0:07:47]} 19. Ne4 {[%emt 0:00:25]} Bd5 {[%emt 0:03:39]} 20. Nfg3 {[%emt 0:03:18]} Rad8 {[%emt 0:02:12]} 21. Rad1 {[%emt 0:00:25]} Bxe4 {[%emt 0:01:25]} 22. Rxe4 {[%emt 0:02:31]} Bc5 {[%emt 0:01:26]} 23. Rde1 {[%emt 0:01:27]} Bd4 {[%emt 0:05:47]} 24. b3 {[%emt 0:01:52]} Bc3 {[%emt 0:02:34]} 25. R1e2 {[%emt 0:00:02]} Bb2 {[%emt 0:00:39]} 26. a4 {[%emt 0:00:17]} c5 {[%emt 0:00:46]} 27. Kg2 {[%emt 0:01:44]} Bd4 {[%emt 0:00:45]} 28. h4 {[%emt 0:01:37]} Rf8 {[%emt 0:01:20]} 29. Qf5 {[%emt 0:03:41]} Qc6 {[%emt 0:04:37]} 30. h5 {[%emt 0:00:16]} Rf7 {[%emt 0:04:22]} 31. Kh3 {[%emt 0:02:24]} Qd7 {[%emt 0:02:15]} 32. Qxd7 {[%emt 0:02:24]} Rfxd7 {[%emt 0:00:21]} 33. Kg2 {[%emt 0:03:55]} Kf7 {[%emt 0:00:35]} 34. f4 {[%emt 0:01:04]} exf4 {[%emt 0:00:57]} 35. Rxf4 {[%emt 0:00:27]} Re8 {[%emt 0:00:30]} 36. Ne4 {[%emt 0:01:24]} Re5 {[%emt 0:01:08]} 37. c3 {[%emt 0:01:19]} c4 {[%emt 0:00:33]} 38. bxc4 {[%emt 0:02:13]} Bb6 {[%emt 0:00:14]} 39. d4 {[%emt 0:01:25]} Ree7 {[%emt 0:00:24]} 40. Ng5+ {[%emt 0:03:19]} Kg8 {[%emt 0:00:36]} 41. Ne6 {[%emt 0:15:13]} Kf7 {[%emt 0:03:30]} 42. Rfe4 {[%emt 0:00:00]} Ba5 {[%emt 0:01:17]} 43. Nc5 {[%emt 0:00:00]} Rxe4 {[%emt 0:00:38]} 44. Nxe4 {[%emt 0:00:00]} g6 {[%emt 0:05:51]} 45. hxg6+ {[%emt 0:00:00]} Kxg6 {[%emt 0:00:09]} 46. Re3 {[%emt 0:00:00]} 1-0

[Event "DSAM Bad Wildungen 2024"]
[Site "Bad Wildungen"]
[Date "2024.08.01"]
[Round "1.28"]
[White "Mueller, Marius"]
[Black "Will, Jonas"]
[Result "0-1"]
[Annotator "RC"]
[ECO "C54"]
[WhiteElo "2026"]
[BlackElo "1868"]
[PlyCount "75"]
[EventDate "2024.07.31"]
[EventCountry "GER"]
[SourceTitle "playchess.com"]
[Source "ChessBase"]
[SourceQuality "1"]
[TimeControl "40/5400+30:900+30"]

1. e4 {[%emt 0:00:05]} e5 {[%emt 0:00:05]} 2. Nf3 {[%emt 0:00:10]} Nc6 {[%emt 0:00:06]} 3. Bc4 {[%emt 0:00:18]} Bc5 {[%emt 0:00:05]} 4. c3 {[%emt 0:00:25]} Nf6 {[%emt 0:00:14]} 5. d4 {[%emt 0:00:23]} exd4 {[%emt 0:00:13]} 6. b4 {[%emt 0:00:20]} Bb6 {[%emt 0:01:16]} 7. e5 {[%emt 0:00:23]} d5 {[%emt 0:01:29]} 8. exf6 {[%emt 0:01:19]} dxc4 {[%emt 0:00:10]} 9. Qe2+ {[%emt 0:01:02]} Be6 {[%emt 0:00:45]} 10. b5 {[%emt 0:00:36]} Nb8 {[%emt 0:03:01]} 11. fxg7 {[%emt 0:23:13]} Rg8 {[%emt 0:00:15]} 12. cxd4 {[%emt 0:01:02]} Rxg7 {[%emt 0:06:11]} 13. O-O {[%emt 0:04:44]} c6 {[%emt 0:23:51]} 14. Rd1 {[%emt 0:17:32]} Nd7 {[%emt 0:07:28]} 15. a4 {[%emt 0:08:37]} Qf6 {[%emt 0:11:59]} 16. Nc3 {[%emt 0:25:15]} Kf8 {[%emt 0:05:40]} 17. Ne4 {[%emt 0:04:22]} Qg6 {[%emt 0:02:33]} 18. Ng3 {[%emt 0:00:56]} Re8 {[%emt 0:04:50]} 19. Ne5 {[%emt 0:04:57]} Nxe5 {[%emt 0:00:25]} 20. dxe5 {[%emt 0:00:22]} Bg4 {[%emt 0:02:58]} 21. Qxc4 {[%emt 0:01:17]} Bxd1 {[%emt 0:00:19]} 22. Ba3+ {[%emt 0:00:08]} Kg8 {[%emt 0:00:30]} 23. Rxd1 {[%emt 0:00:09]} Qg4 {[%emt 0:03:02]} 24. Qc2 {[%emt 0:00:59]} cxb5 {[%emt 0:00:58]} 25. axb5 {[%emt 0:01:23]} h5 {[%emt 0:00:31]} 26. Re1 {[%emt 0:02:44]} h4 {[%emt 0:01:18]} 27. Re4 {[%emt 0:00:21]} Qg5 {[%emt 0:01:32]} 28. Rxh4 {[%emt 0:00:44]} Qxh4 {[%emt 0:01:18]} 29. Nf5 {[%emt 0:00:25]} Qh7 {[%emt 0:01:14]} 30. Ne7+ {[%emt 0:00:30]} Kh8 {[%emt 0:00:47]} 31. Qb2 {[%emt 0:00:47]} Qe4 {[%emt 0:01:17]} 32. g3 {[%emt 0:00:18]} Bd4 {[%emt 0:00:59]} 33. Qd2 {[%emt 0:00:40]} Bxe5 {[%emt 0:01:27]} 34. Qh6+ {[%emt 0:00:31]} Rh7 {[%emt 0:01:00]} 35. Qg5 {[%emt 0:00:31]} Bd4 {[%emt 0:01:34]} 36. Bb4 {[%emt 0:00:30]} Qb1+ {[%emt 0:00:32]} 37. Kg2 {[%emt 0:00:27]} Qxb4 {[%emt 0:00:49]} 38. Nd5 {[%emt 0:00:21]} 0-1

[Event "DSAM Bad Wildungen 2024"]
[Site "Bad Wildungen"]
[Date "2024.08.01"]
[Round "1.29"]
[White "Valean, David-Andrei"]
[Black "Schardt, Madeleine"]
[Result "1-0"]
[Annotator "NA RC"]
[ECO "D00"]
[WhiteElo "1762"]
[BlackElo "1799"]
[PlyCount "39"]
[EventDate "2024.07.31"]
[EventCountry "GER"]
[SourceTitle "playchess.com"]
[Source "ChessBase"]
[SourceQuality "1"]
[TimeControl "40/5400+30:900+30"]

1. d4 {[%emt 0:00:05]} d5 {[%emt 0:00:08]} 2. Nc3 {[%emt 0:00:07]} c6 {[%emt 0:00:15]} 3. Bf4 {[%emt 0:00:08]} Nf6 {[%emt 0:00:30]} 4. e3 {[%emt 0:00:09]} Bf5 {[%emt 0:01:12]} 5. f3 {[%emt 0:00:28]} e6 {[%emt 0:02:30]} 6. g4 {[%emt 0:00:08]} Bg6 {[%emt 0:00:17]} 7. h4 {[%emt 0:00:06]} h6 {[%emt 0:02:17]} 8. Bd3 {[%emt 0:00:26]} Bxd3 {[%emt 0:00:56]} 9. Qxd3 {[%emt 0:00:12]} Bd6 {[%emt 0:02:19]} 10. Nge2 {[%emt 0:01:53]} Qc7 {[%emt 0:12:32]} 11. O-O-O {[%emt 0:09:28]} Nbd7 {[%emt 0:00:43]} 12. Bxd6 {[%emt 0:10:40]} Qxd6 {[%emt 0:00:07]} 13. e4 {[%emt 0:13:15]} dxe4 {[%emt 0:03:32]} 14. Nxe4 {[%emt 0:01:04]} Qc7 {[%emt 0:02:03]} 15. g5 {[%emt 0:14:29]} Nd5 {[%emt 0:02:24]} 16. Qa3 {[%emt 0:03:16]} N7b6 {[%emt 0:08:48]} 17. Nd6+ {[%emt 0:01:18]} Kd8 {[%emt 0:02:19]} 18. c4 {[%emt 0:01:13]} Nf4 {[%emt 0:03:04]} 19. Nxf4 {[%emt 0:03:48]} Nxc4 {[%emt 0:00:37]} 20. Nxe6+ {[%emt 0:01:06]} 1-0

[Event "DSAM Bad Wildungen 2024"]
[Site "Bad Wildungen"]
[Date "2024.08.01"]
[Round "1.30"]
[White "Hankus, Dennis"]
[Black "Bauch, Martin"]
[Result "1/2-1/2"]
[Annotator "RC"]
[ECO "B22"]
[WhiteElo "1698"]
[BlackElo "1976"]
[PlyCount "72"]
[EventDate "2024.07.31"]
[EventCountry "GER"]
[SourceTitle "playchess.com"]
[Source "ChessBase"]
[SourceQuality "1"]
[TimeControl "40/5400+30:900+30"]

1. e4 {[%emt 0:00:07]} c5 {[%emt 0:00:07]} 2. c3 {[%emt 0:00:22]} Nf6 {[%emt 0:00:13]} 3. e5 {[%emt 0:00:09]} Nd5 {[%emt 0:00:08]} 4. Nf3 {[%emt 0:00:08]} e6 {[%emt 0:00:24]} 5. d4 {[%emt 0:00:08]} cxd4 {[%emt 0:00:17]} 6. cxd4 {[%emt 0:00:10]} d6 {[%emt 0:00:27]} 7. Bc4 {[%emt 0:00:39]} Nb6 {[%emt 0:00:19]} 8. Bd3 {[%emt 0:00:21]} Nc6 {[%emt 0:01:17]} 9. O-O {[%emt 0:00:36]} Be7 {[%emt 0:02:40]} 10. Nc3 {[%emt 0:03:09]} dxe5 {[%emt 0:13:17]} 11. dxe5 {[%emt 0:01:44]} O-O {[%emt 0:00:18]} 12. Re1 {[%emt 0:11:49]} Nb4 {[%emt 0:06:19]} 13. Be4 {[%emt 0:02:13]} Qxd1 {[%emt 0:00:27]} 14. Rxd1 {[%emt 0:00:30]} Rd8 {[%emt 0:03:08]} 15. Rxd8+ {[%emt 0:19:02]} Bxd8 {[%emt 0:00:07]} 16. b3 {[%emt 0:03:02]} N4d5 {[%emt 0:06:26]} 17. Bb2 {[%emt 0:05:58]} Nxc3 {[%emt 0:02:31]} 18. Bxc3 {[%emt 0:00:13]} Nd5 {[%emt 0:00:10]} 19. Rd1 {[%emt 0:01:30]} Bd7 {[%emt 0:02:09]} 20. Bxd5 {[%emt 0:04:52]} exd5 {[%emt 0:00:08]} 21. Rxd5 {[%emt 0:01:37]} Be6 {[%emt 0:04:17]} 22. Rd1 {[%emt 0:04:28]} Rc8 {[%emt 0:03:35]} 23. Rc1 {[%emt 0:05:28]} f6 {[%emt 0:04:10]} 24. Bb2 {[%emt 0:03:52]} Rxc1+ {[%emt 0:02:40]} 25. Bxc1 {[%emt 0:01:04]} Kf7 {[%emt 0:02:03]} 26. exf6 {[%emt 0:03:59]} gxf6 {[%emt 0:03:53]} 27. Nd4 {[%emt 0:01:27]} Bd5 {[%emt 0:01:05]} 28. Be3 {[%emt 0:04:23]} a6 {[%emt 0:01:23]} 29. f3 {[%emt 0:02:50]} Ba5 {[%emt 0:05:42]} 30. Kf2 {[%emt 0:02:30]} Kg6 {[%emt 0:02:33]} 31. Ne2 {[%emt 0:03:07]} Bc7 {[%emt 0:06:57]} 32. Bf4 {[%emt 0:03:11]} Bb6+ {[%emt 0:00:19]} 33. Be3 {[%emt 0:00:19]} Bc7 {[%emt 0:00:11]} 34. Nc3 {[%emt 0:00:41]} Be6 {[%emt 0:01:35]} 35. g3 {[%emt 0:03:12]} Be5 {[%emt 0:04:24]} 36. Ne4 {[%emt 0:01:57]} Bd5 {[%emt 0:02:16]} 1/2-1/2

[Event "DSAM Bad Wildungen 2024"]
[Site "Bad Wildungen"]
[Date "2024.08.01"]
[Round "1.31"]
[White "Hoefle, Jan"]
[Black "Klaas, Tim"]
[Result "1-0"]
[Annotator "NA RC"]
[ECO "B22"]
[WhiteElo "1765"]
[BlackElo "1866"]
[PlyCount "81"]
[EventDate "2024.07.31"]
[EventCountry "GER"]
[SourceTitle "playchess.com"]
[Source "ChessBase"]
[SourceQuality "1"]
[TimeControl "40/5400+30:900+30"]

1. e4 {[%emt 0:00:04]} c5 {[%emt 0:00:05]} 2. c3 {[%emt 0:00:10]} d5 {[%emt 0:00:12]} 3. exd5 {[%emt 0:00:07]} Qxd5 {[%emt 0:00:07]} 4. d4 {[%emt 0:00:07]} Nf6 {[%emt 0:00:21]} 5. Nf3 {[%emt 0:00:27]} Bg4 {[%emt 0:01:08]} 6. dxc5 {[%emt 0:00:20]} Qxd1+ {[%emt 0:02:40] B22: Sicilian: 2 c3.} 7. Kxd1 {[%emt 0:00:08]} Bxf3+ {[%emt 0:00:09]} 8. gxf3 {[%emt 0:00:09]} e6 {[%emt 0:02:45]} 9. Be3 {[%emt 0:02:12]} Nbd7 {[%emt 0:02:16]} 10. Bb5 {[%emt 0:05:17]} O-O-O {[%emt 0:02:16]} 11. c6 {[%emt 0:01:52]} bxc6 {[%emt 0:04:02]} 12. Ba6+ {[%emt 0:01:36]} Kb8 {[%emt 0:00:21]} 13. Nd2 {[%emt 0:00:59]} Bc5 {[%emt 0:14:47]} 14. Ke2 {[%emt 0:03:49]} Nd5 {[%emt 0:02:48]} 15. Ne4 {[%emt 0:04:47]} Be7 {[%emt 0:01:55]} 16. Bd2 {[%emt 0:07:23]} h6 {[%emt 0:01:53]} (16... f5 $1 {was preferrable.} 17. Ng3 h5) 17. a3 {[%emt 0:07:05]} Kc7 {[%emt 0:10:31]} 18. b4 {[%emt 0:01:14] [#]} (18. c4 $11 {remains equal.} N5b6 19. b4) 18... Ne5 {[%emt 0:02:56]} ({Black should try} 18... f5 $1 $17 {[%cal Rf5e4]} 19. Ng3 Bf6) 19. c4 $11 {[%emt 0:01:37]} Kb6 {[%emt 0:08:44]} 20. cxd5 {[%emt 0:05:43]} cxd5 {[%emt 0:05:08]} 21. b5 {[%emt 0:10:00]} dxe4 {[%emt 0:01:13]} 22. Be3+ {[%emt 0:01:28]} Bc5 {[%emt 0:03:07]} 23. Bxc5+ {[%emt 0:02:30]} Kxc5 {[%emt 0:00:07]} 24. fxe4 {[%emt 0:01:50]} Rd7 {[%emt 0:06:42]} 25. Rac1+ {[%emt 0:02:09]} Kb6 {[%emt 0:05:19]} 26. Rhd1 {[%emt 0:10:15]} Rhd8 {[%emt 0:00:27]} 27. Rxd7 {[%emt 0:02:37]} Rxd7 {[%emt 0:00:02]} 28. Rc3 {[%emt 0:02:57]} Rc7 {[%emt 0:00:59]} 29. Rg3 {[%emt 0:03:17]} g6 {[%emt 0:02:01]} 30. f4 {[%emt 0:03:38]} Nd7 {[%emt 0:03:45]} 31. Rd3 {[%emt 0:01:43]} Nc5 {[%emt 0:01:24]} 32. Rd6+ {[%emt 0:01:14]} Ka5 {[%emt 0:00:48]} 33. Ke3 {[%emt 0:01:22]} Nxa6 {[%emt 0:01:16]} 34. bxa6 {[%emt 0:00:32]} h5 {[%emt 0:04:52]} 35. Kd4 {[%emt 0:00:41]} Rc2 {[%emt 0:04:21]} 36. h3 {[%emt 0:01:43]} Rd2+ {[%emt 0:06:19]} 37. Ke5 {[%emt 0:00:37]} Rxd6 {[%emt 0:00:06]} 38. Kxd6 {[%emt 0:00:14]} Kxa6 {[%emt 0:00:10]} 39. e5 {[%emt 0:00:50]} Kb5 {[%emt 0:01:25]} 40. Ke7 {[%emt 0:00:11]} g5 {[%emt 0:00:28]} 41. fxg5 {[%emt 0:15:17]} 1-0

[Event "DSAM Bad Wildungen 2024"]
[Site "Bad Wildungen"]
[Date "2024.08.01"]
[Round "1.32"]
[White "Schmitt, Philipp"]
[Black "Seum, Ferdinand"]
[Result "1-0"]
[Annotator "RC"]
[ECO "A04"]
[WhiteElo "2170"]
[BlackElo "1790"]
[PlyCount "125"]
[EventDate "2024.07.31"]
[EventCountry "GER"]
[SourceTitle "playchess.com"]
[Source "ChessBase"]
[SourceQuality "1"]
[TimeControl "40/5400+30:900+30"]

1. Nf3 {[%emt 0:00:27]} Nf6 {[%emt 0:00:53]} 2. g3 {[%emt 0:00:11]} c5 {[%emt 0:00:12]} 3. Bg2 {[%emt 0:00:19]} Nc6 {[%emt 0:00:15]} 4. O-O {[%emt 0:01:19]} e5 {[%emt 0:00:00]} 5. d3 {[%emt 0:00:26]} d6 {[%emt 0:01:48]} 6. e4 {[%emt 0:00:28]} Bg4 {[%emt 0:01:03]} 7. Nbd2 {[%emt 0:01:21]} Qd7 {[%emt 0:06:09]} 8. c3 {[%emt 0:03:27]} Be7 {[%emt 0:05:53]} 9. Qc2 {[%emt 0:03:36]} O-O {[%emt 0:06:38]} 10. Nc4 {[%emt 0:01:41]} Bh3 {[%emt 0:09:29]} 11. Bg5 {[%emt 0:05:40]} Bxg2 {[%emt 0:03:35]} 12. Kxg2 {[%emt 0:00:19]} Ne8 {[%emt 0:02:47]} 13. Bxe7 {[%emt 0:08:14]} Nxe7 {[%emt 0:00:19]} 14. Ne3 {[%emt 0:05:28]} Kh8 {[%emt 0:04:20]} 15. Qb3 {[%emt 0:06:13]} f5 {[%emt 0:10:33]} 16. Nxf5 {[%emt 0:14:15]} Nxf5 {[%emt 0:00:31]} 17. exf5 {[%emt 0:00:27]} Rxf5 {[%emt 0:01:24]} 18. Nh4 {[%emt 0:01:46]} Rf7 {[%emt 0:06:59]} 19. Rae1 {[%emt 0:04:07]} Nf6 {[%emt 0:03:55]} 20. h3 {[%emt 0:06:17]} Raf8 {[%emt 0:00:21]} 21. Qc2 {[%emt 0:04:39]} Nd5 {[%emt 0:04:13]} 22. Kh2 {[%emt 0:03:52]} b6 {[%emt 0:07:24]} 23. a3 {[%emt 0:03:44]} Rf6 {[%emt 0:01:32]} 24. c4 {[%emt 0:01:30]} Ne7 {[%emt 0:02:36]} 25. Ng2 {[%emt 0:01:28]} Nc6 {[%emt 0:01:02]} 26. f4 {[%emt 0:03:16]} g5 {[%emt 0:01:16]} 27. Qc1 {[%emt 0:01:36]} Rh6 {[%emt 0:02:36]} 28. f5 {[%emt 0:03:32]} Rxf5 {[%emt 0:00:49]} 29. g4 {[%emt 0:00:08]} Rxf1 {[%emt 0:01:33]} 30. Rxf1 {[%emt 0:00:18]} Qxg4 {[%emt 0:01:25]} 31. Qe3 {[%emt 0:00:41]} Kg7 {[%emt 0:01:49]} 32. Rf3 {[%emt 0:00:27]} Qe6 {[%emt 0:06:09]} 33. Qxg5+ {[%emt 0:02:37]} Rg6 {[%emt 0:00:08]} 34. Qe3 {[%emt 0:01:05]} Nd4 {[%emt 0:00:12]} 35. Rg3 {[%emt 0:01:19]} Nf5 {[%emt 0:02:58]} 36. Rxg6+ {[%emt 0:00:39]} hxg6 {[%emt 0:00:41]} 37. Qf3 {[%emt 0:00:54]} Nd4 {[%emt 0:00:55]} 38. Qb7+ {[%emt 0:00:42]} Qf7 {[%emt 0:01:08]} 39. Qxf7+ {[%emt 0:01:16]} Kxf7 {[%emt 0:00:05]} 40. Kg3 {[%emt 0:00:42]} a6 {[%emt 0:03:12]} 41. Ne3 {[%emt 0:16:11]} Ne2+ {[%emt 0:16:09]} 42. Kf3 {[%emt 0:00:36]} Nf4 {[%emt 0:00:10]} 43. Ke4 {[%emt 0:01:26]} Nxh3 {[%emt 0:00:00]} 44. Kd5 {[%emt 0:00:00]} Nf4+ {[%emt 0:00:00]} 45. Kxd6 {[%emt 0:00:00]} Nxd3 {[%emt 0:00:00]} 46. Kc6 {[%emt 0:00:00]} Nxb2 {[%emt 0:00:00]} 47. Kxb6 {[%emt 0:00:00]} Nd3 {[%emt 0:00:00]} 48. Kxa6 {[%emt 0:00:00]} Ke6 {[%emt 0:00:00]} 49. a4 {[%emt 0:00:00]} Kd6 {[%emt 0:00:00]} 50. Kb5 {[%emt 0:00:00]} e4 {[%emt 0:00:00]} 51. a5 {[%emt 0:00:00]} Nb4 {[%emt 0:00:00]} 52. a6 {[%emt 0:00:00]} Nxa6 {[%emt 0:00:16]} 53. Kxa6 {[%emt 0:00:00]} Ke5 {[%emt 0:00:11]} 54. Kb5 {[%emt 0:00:00]} Kd4 {[%emt 0:00:36]} 55. Nc2+ {[%emt 0:00:00]} Kd3 {[%emt 0:02:01]} 56. Kxc5 {[%emt 0:00:00]} g5 {[%emt 0:01:33]} 57. Kd5 {[%emt 0:00:00]} e3 {[%emt 0:01:35]} 58. Nxe3 {[%emt 0:00:00]} Kxe3 {[%emt 0:00:15]} 59. c5 {[%emt 0:00:00]} g4 {[%emt 0:00:17]} 60. c6 {[%emt 0:00:00]} g3 {[%emt 0:00:03]} 61. c7 {[%emt 0:00:00]} g2 {[%emt 0:00:09]} 62. c8=Q {[%emt 0:00:00]} g1=Q {[%emt 0:00:09]} 63. Qc5+ {[%emt 0:00:00]} 1-0

[Event "DSAM Bad Wildungen 2024"]
[Site "Bad Wildungen"]
[Date "2024.08.01"]
[Round "1.33"]
[White "Dolidze, David"]
[Black "Reinschmidt, Bastin"]
[Result "1-0"]
[Annotator "NA RC"]
[ECO "B12"]
[WhiteElo "1720"]
[BlackElo "1775"]
[PlyCount "45"]
[EventDate "2024.07.31"]
[EventCountry "GER"]
[SourceTitle "playchess.com"]
[Source "ChessBase"]
[SourceQuality "1"]
[TimeControl "40/5400+30:900+30"]

1. e4 {[%emt 0:00:10]} c6 {[%emt 0:00:08]} 2. d4 {[%emt 0:00:49]} d5 {[%emt 0:00:08]} 3. f3 {[%emt 0:00:03]} Qb6 {[%emt 0:00:16]} 4. Nc3 {[%emt 0:14:56]} dxe4 {[%emt 0:05:47]} 5. fxe4 {[%emt 0:00:27]} e5 {[%emt 0:05:14]} 6. dxe5 {[%emt 0:08:51]} Be6 {[%emt 0:04:01]} 7. Bd3 {[%emt 0:02:33]} Nd7 {[%emt 0:06:07]} 8. Nf3 {[%emt 0:01:42]} h6 {[%emt 0:10:36]} 9. Bd2 {[%emt 0:06:46]} g5 {[%emt 0:16:33]} 10. Na4 {[%emt 0:01:02]} Qc7 {[%emt 0:00:52]} 11. O-O {[%emt 0:00:26]} c5 {[%emt 0:04:49]} 12. c4 {[%emt 0:02:27]} Bg7 {[%emt 0:04:01]} 13. Nc3 {[%emt 0:01:17]} Nxe5 {[%emt 0:00:30]} 14. Nxe5 {[%emt 0:01:56]} Bxe5 {[%emt 0:01:41]} 15. Nd5 {[%emt 0:02:50]} Bxh2+ {[%emt 0:04:59]} 16. Kh1 {[%emt 0:00:09]} Qd6 {[%emt 0:00:45]} 17. Qh5 {[%emt 0:03:20]} Bf4 {[%emt 0:04:51]} 18. Rxf4 {[%emt 0:02:11]} Bxd5 {[%emt 0:06:56]} 19. exd5 {[%emt 0:02:07]} gxf4 {[%emt 0:02:50]} 20. Bc3 {[%emt 0:00:11]} Nf6 {[%emt 0:06:07]} 21. Qf5 {[%emt 0:00:08]} f3 {[%emt 0:02:29]} 22. Bxf6 {[%emt 0:00:59]} fxg2+ {[%emt 0:00:10]} 23. Kg1 {[%emt 0:00:08]} 1-0

[Event "DSAM Bad Wildungen 2024"]
[Site "Bad Wildungen"]
[Date "2024.08.01"]
[Round "1.34"]
[White "Roth, Niklas"]
[Black "Meyer, Henry Paul"]
[Result "1-0"]
[Annotator "NA RC"]
[ECO "B08"]
[WhiteElo "1749"]
[BlackElo "1712"]
[PlyCount "49"]
[EventDate "2024.07.31"]
[EventCountry "GER"]
[SourceTitle "playchess.com"]
[Source "ChessBase"]
[SourceQuality "1"]
[TimeControl "40/5400+30:900+30"]

1. d4 {[%emt 0:00:09]} Nf6 {[%emt 0:00:09]} 2. Bf4 {[%emt 0:00:18]} g6 {[%emt 0:00:48]} 3. Nc3 {[%emt 0:00:25]} Bg7 {[%emt 0:02:18]} 4. e4 {[%emt 0:00:58]} d6 {[%emt 0:02:40]} 5. Qd2 {[%emt 0:02:38]} Nbd7 {[%emt 0:04:54]} 6. Nf3 {[%emt 0:01:27]} O-O {[%emt 0:02:58]} 7. O-O-O {[%emt 0:01:54]} Nb6 {[%emt 0:23:07]} 8. Bh6 {[%emt 0:03:53]} Bxh6 {[%emt 0:04:50]} 9. Qxh6 {[%emt 0:00:57]} Ng4 {[%emt 0:01:13]} 10. Qd2 {[%emt 0:07:13]} Be6 {[%emt 0:13:10]} 11. Ng5 {[%emt 0:08:35]} Rc8 {[%emt 0:07:25]} 12. f3 {[%emt 0:04:38]} Nf6 {[%emt 0:00:38]} 13. g4 {[%emt 0:05:03]} d5 {[%emt 0:07:35]} 14. e5 {[%emt 0:07:29]} Nfd7 {[%emt 0:00:10]} 15. h4 {[%emt 0:00:41]} Kg7 {[%emt 0:03:41]} 16. h5 {[%emt 0:03:38]} Rh8 {[%emt 0:01:56]} 17. Bd3 {[%emt 0:01:49]} c5 {[%emt 0:02:06]} 18. hxg6 {[%emt 0:02:00]} hxg6 {[%emt 0:00:31]} 19. Nxe6+ {[%emt 0:02:48]} fxe6 {[%emt 0:00:06]} 20. Qg5 {[%emt 0:00:31]} Qe8 {[%emt 0:02:02]} 21. Rxh8 {[%emt 0:01:03]} Qxh8 {[%emt 0:00:46]} 22. Qxe7+ {[%emt 0:00:13]} Kg8 {[%emt 0:00:03]} 23. Qxe6+ {[%emt 0:00:19]} Kf8 {[%emt 0:00:48]} 24. Bxg6 {[%emt 0:01:20]} Qg7 {[%emt 0:01:45]} 25. Rh1 {[%emt 0:01:16]} 1-0

[Event "DSAM Bad Wildungen 2024"]
[Site "Bad Wildungen"]
[Date "2024.08.01"]
[Round "1.35"]
[White "Reuter, Marek"]
[Black "Schmitz, Christopher"]
[Result "1-0"]
[Annotator "NA RC"]
[ECO "B12"]
[WhiteElo "1761"]
[BlackElo "1817"]
[PlyCount "35"]
[EventDate "2024.07.31"]
[EventCountry "GER"]
[SourceTitle "playchess.com"]
[Source "ChessBase"]
[SourceQuality "1"]
[TimeControl "40/5400+30:900+30"]

1. e4 {[%emt 0:02:04]} c6 {[%emt 0:00:07]} 2. d4 {[%emt 0:03:37]} d5 {[%emt 0:02:17]} 3. f3 {[%emt 0:02:15]} dxe4 {[%emt 0:01:12]} 4. fxe4 {[%emt 0:00:37]} e5 {[%emt 0:01:15]} 5. Nf3 {[%emt 0:01:20]} Bg4 {[%emt 0:01:51]} 6. Bc4 {[%emt 0:01:59]} Bxf3 {[%emt 0:04:31]} 7. Qxf3 {[%emt 0:00:30]} Nf6 {[%emt 0:00:37]} 8. dxe5 {[%emt 0:00:19]} Qa5+ {[%emt 0:00:17]} 9. Nd2 {[%emt 0:06:51]} Qxe5 {[%emt 0:00:35]} 10. O-O {[%emt 0:01:01]} Bc5+ {[%emt 0:02:39]} 11. Kh1 {[%emt 0:00:14]} Nbd7 {[%emt 0:01:40]} 12. Nb3 {[%emt 0:11:20]} O-O {[%emt 0:09:14]} 13. Bf4 {[%emt 0:07:19]} Qxe4 {[%emt 0:04:19]} 14. Qc3 {[%emt 0:05:53]} Bb6 $11 {[%emt 0:21:32]} 15. Rae1 {[%emt 0:02:09]} Qg6 {[%emt 0:04:18]} 16. Bd3 {[%emt 0:04:15]} Nd5 {[%emt 0:10:06]} 17. Bxg6 {[%emt 0:00:49]} Nxc3 {[%emt 0:00:03]} 18. Bf5 {[%emt 0:46:58]} 1-0